[Event "European Women-ch 2023"]
[Site "Petrovac"]
[Date "2023.03.23"]
[Round "6.11"]
[White "Huseynova, Lala"]
[Black "Hajiyeva, Laman"]
[Result "0-1"]
[ECO "C07"]
[WhiteElo "1694"]
[BlackElo "2118"]
[Annotator "TA"]
[PlyCount "65"]
[EventDate "2023.03.15"]
[EventType "swiss"]
[EventCountry "MNE"]
[SourceTitle "playchess.com"]
[Source "ChessBase"]
[SourceQuality "1"]
[TimeControl "40/5400+30:1800+30"]

{[%evp 13,65,3,21,0,0,3,0,-22,6,8,11,-8,-4,-51,-5,-18,-12,-1,35,34,43,54,50,43,49,36,31,23,28,0,0,-115,-114,-114,-114,-316,-270,-306,-295,-313,-300,-358,-343,-331,-307,-675,-652,-5010,-5002,-29988,-29989,-29989,-29990,-29990]} 1. e4 {[%emt 0:00:08]} e6 {[%emt 0:00:35]} 2. d4 {[%emt 0:00:16]} d5 {[%emt 0:00:06]} 3. Nd2 {[%emt 0:00:27]} c5 {[%emt 0:00:50]} 4. Ngf3 {[%emt 0:00:24]} cxd4 {[%emt 0:00:30]} 5. Nxd4 {[%emt 0:00:31]} Nc6 {[%emt 0:00:07]} 6. Bb5 {[%emt 0:00:25]} Bd7 {[%emt 0:00:13]} 7. Nxc6 {[%emt 0:00:28]} Bxc6 {[%emt 0:00:09]} 8. Qe2 {[%emt 0:06:25]} Nf6 {[%emt 0:05:53]} 9. O-O {[%emt 0:06:58]} Be7 {[%emt 0:04:37]} 10. e5 {[%emt 0:08:26] The position is equal.} Nd7 {[%emt 0:01:11][%cal Od7e5]} 11. Bd3 {[%emt 0:00:17]} Nc5 {[%emt 0:13:51]} 12. Kh1 {[%emt 0:07:01]} O-O {[%emt 0:04:14]} (12... d4 {with more complications.} 13. Bb5 d3 14. Bxd3 Nxd3 15. cxd3 Qd5) 13. f4 {[%emt 0:01:34]} (13. Nb3 $11 {is more appropriate.}) 13... f6 {[%emt 0:05:02]} (13... Nxd3 $15 14. cxd3 Rc8) 14. Nf3 $11 {[%emt 0:06:45]} Nxd3 {[%emt 0:10:42]} 15. Qxd3 {[%emt 0:01:55]} Bc5 {[%emt 0:18:05]} 16. Be3 {[%emt 0:04:50]} Qb6 {[%emt 0:04:17]} 17. Bxc5 {[%emt 0:04:31]} Qxc5 {[%emt 0:00:02]} 18. Nd4 {[%emt 0:02:02] Prevents Bb5.} Bd7 {[%emt 0:00:44]} 19. exf6 {[%emt 0:02:32]} Rxf6 {[%emt 0:00:36]} 20. Rae1 {[%emt 0:02:41]} Raf8 {[%emt 0:02:17]} 21. Qe3 {[%emt 0:02:32]} e5 {[%emt 0:01:43]} 22. Nf3 {[%emt 0:06:11]} (22. Qxe5 $11 {keeps the balance.} Re8 23. Nb3) 22... Qxe3 $17 {[%emt 0:00:52]} (22... Qxc2 23. fxe5 (23. Nxe5 Bf5 $11) 23... Rb6 24. Rf2 $14) 23. Rxe3 {[%emt 0:00:01] [#]} e4 {[%emt 0:03:51]} ({Much weaker is} 23... exf4 $6 24. Re7 R6f7 25. Re5 $15) (23... Rxf4 $6 24. Rxe5 d4 25. Kg1 $11) 24. Ne5 $2 {[%emt 0:02:47] This costs White the game.} (24. Nd4 $17) 24... Bb5 $19 {[%emt 0:00:28]} (24... Rxf4 25. Rxf4 Rxf4 26. g3 Rf1+ 27. Kg2 $17) 25. c4 {[%emt 0:02:17]} Rxf4 {[%emt 0:01:24]} (25... Bxc4 26. Nxc4 dxc4 27. Rxe4 $11) 26. Rxf4 {[%emt 0:04:46]} Rxf4 {[%emt 0:00:01][%cal Rf4f1][%mdl 4096] Endgame KRB-KRN} 27. Kg1 {[%emt 0:00:32] Inhibits Rf1+.} Rf5 {[%emt 0:02:25]} ({Not} 27... Bxc4 28. Nxc4 dxc4 29. g3 $17) ({Worse is} 27... dxc4 28. h3 $17) 28. cxb5 {[%emt 0:00:57] [#] Threatens to win with Ng4.} Rxe5 {[%emt 0:00:04]} 29. a4 $2 {[%emt 0:08:03]} (29. Kf2) 29... d4 {[%emt 0:00:19][%cal Bd5d4,Bd4d3][%mdl 32]} 30. Re1 {[%emt 0:00:36]} e3 {[%emt 0:01:13] ( -> ...d3)} 31. Rc1 {[%emt 0:01:42]} d3 {[%emt 0:00:15]} 32. Rc8+ {[%emt 0:01:54]} Kf7 {[%emt 0:00:02]} 33. Kf1 {[%emt 0:01:22] Weighted Error Value: White=0.83/Black=0.06 (flawless)} 0-1

[Event "European Women-ch 2023"]
[Site "Petrovac"]
[Date "2023.03.23"]
[Round "6.12"]
[White "Buksa, Nataliya"]
[Black "Zimina, Olga"]
[Result "1-0"]
[ECO "C55"]
[WhiteElo "2405"]
[BlackElo "2295"]
[Annotator "TA"]
[PlyCount "107"]
[EventDate "2023.03.15"]
[EventType "swiss"]
[EventCountry "MNE"]
[SourceTitle "playchess.com"]
[Source "ChessBase"]
[SourceQuality "1"]
[TimeControl "40/5400+30:1800+30"]

{[%evp 9,107,29,26,27,33,24,41,39,50,37,33,33,58,59,64,64,77,43,60,33,169,168,243,238,243,232,233,0,222,0,216,211,339,277,385,401,401,394,386,387,391,352,339,242,279,239,225,236,233,214,309,258,295,290,283,0,266,156,189,0,238,0,206,117,224,164,379,366,339,379,369,353,683,279,1124,0,393,383,819,805,1601,1410,1228,1228,1169,1100,898,1021,12837,12838,29985,29986,29986,29987,29987,29988,29988,29989,29988,29989]} 1. e4 {[%emt 0:00:30]} e5 {[%emt 0:00:30]} 2. Nf3 {[%emt 0:00:30]} Nc6 {[%emt 0:00:30]} 3. Bc4 {[%emt 0:00:30]} Nf6 {[%emt 0:00:30]} 4. d3 {[%emt 0:00:30]} h6 {[%emt 0:00:30]} 5. c3 {[%emt 0:00:30]} d6 {[%emt 0:00:30]} 6. a4 {[%emt 0:00:30]} g5 {[%emt 0:00:30]} 7. Qb3 {[%emt 0:00:30]} Qd7 {[%emt 0:00:30]} 8. a5 {[%emt 0:00:30] White is slightly better.} a6 {[%emt 0:00:30]} 9. h3 {[%emt 0:00:30]} Bg7 {[%emt 0:00:30]} 10. Be3 {[%emt 0:00:30]} Nh5 {[%emt 0:00:30]} 11. g4 {[%emt 0:00:30]} Nf4 {[%emt 0:00:30]} 12. Bxf4 {[%emt 0:00:30]} gxf4 {[%emt 0:00:30]} 13. Nbd2 {White is more active.} Qe7 14. Rg1 $1 {[%emt 0:27:26]} Bd7 {[%emt 0:18:37]} (14... Nd8 $14) 15. Qxb7 $18 {[%emt 0:25:17]} Rb8 {[%emt 0:05:53]} (15... Ra7 $142 16. Qb3 Nd8) 16. Qxc7 {[%emt 0:03:01]} (16. Qxa6 O-O $14) 16... Rc8 {[%emt 0:02:59]} 17. Qb7 {[%emt 0:00:03]} Rb8 {[%emt 0:00:53]} 18. Qc7 {[%emt 0:00:04]} Rc8 $1 {[%emt 0:00:26]} 19. Qb7 {[%emt 0:00:24]} Rb8 {[%emt 0:00:07]} 20. Qxa6 {[%emt 0:18:12]} O-O {[%emt 0:20:27]} (20... Nd8 $142 21. Nh4 Bc8) 21. Bd5 {[%emt 0:00:50]} Nb4 {[%emt 0:17:27]} 22. cxb4 {[%emt 0:01:41]} Bb5 {[%emt 0:02:26] [#] Repels Nc4} 23. Qb6 {[%emt 0:00:02]} Rxb6 {[%emt 0:01:17]} 24. axb6 {[%emt 0:00:03]} Bxd3 {[%emt 0:00:07]} 25. b3 {[%emt 0:03:53]} Qd8 {[%emt 0:01:51]} 26. Nc4 {[%emt 0:01:30]} Bxc4 {[%emt 0:00:41]} 27. bxc4 {[%emt 0:00:04]} Qxb6 {[%emt 0:00:58] Black is weak on the light squares} 28. Ra4 {[%emt 0:00:55]} Bf6 {[%emt 0:07:24]} 29. Ke2 {[%emt 0:00:04]} Bd8 {[%emt 0:01:51]} (29... Kh7 {was called for.} 30. h4 Kg7) 30. Rga1 {[%emt 0:00:51]} Qb8 {[%emt 0:00:00]} 31. R1a2 {[%emt 0:03:19]} Kg7 {[%emt 0:01:17]} 32. Ra1 $2 {[%emt 0:04:42]} (32. Kf1 $18) 32... Qb6 $2 {[%emt 0:01:55][%mdl 8192]} (32... Kg8 $1 $11 {and Black stays safe.}) 33. Rb1 {[%emt 0:01:44]} (33. Kf1 $18) 33... Rh8 {[%emt 0:02:19]} 34. Rba1 {[%emt 0:03:47]} (34. Kf1 $142) 34... Rf8 $1 {[%emt 0:02:27]} 35. R1a2 {[%emt 0:00:41]} Qb8 $1 {[%emt 0:00:37] [#]} 36. Kd3 {[%emt 0:00:13]} ({White should play} 36. Kf1 $1 $18) 36... Qb6 {[%emt 0:00:54]} (36... h5 $16 {might work better.}) 37. Kc3 {[%emt 0:00:35] Ra7 would be deadly.} h5 $2 {[%emt 0:04:00]} (37... Qb8 38. Ra8 Qc7) 38. Ra7 {[%emt 0:01:40]} (38. gxh5 Qc7 39. Ra7 Qc8 $18) 38... hxg4 {[%emt 0:00:53]} 39. hxg4 {[%emt 0:01:47][%cal Bh3g4,Bg4g5,Bg5g6,Bg6f7][%mdl 32] Hoping for Rb7.} Qb8 {[%emt 0:00:15]} 40. Rd7 {[%emt 0:00:00]} Kg8 $2 {[%emt 0:00:00]} (40... Bc7 41. Ng5 (41. Ra8 Qb6 $16) 41... Kg6 42. Nxf7 Qb6) 41. Raa7 {[%emt 0:18:41]} (41. Ra8 $142 Qb6 42. Bxf7+ Rxf7 43. Rdxd8+ (43. Raxd8+ Kg7 $11) 43... Kg7 44. Rg8+ Kh6 45. Rh8+ Kg7 46. Nxe5) 41... Qb6 {[%emt 0:07:51]} (41... Bb6 42. Ra8 (42. Bxf7+ $2 {is the wrong capture.} Rxf7 43. Rab7 Qxb7 $19) 42... Qxa8 43. Bxa8 Rxa8) 42. Ra2 $2 {[%emt 0:00:56]} (42. Rxf7 Rxf7 43. Rxf7 Kh8 $11) ({Only move:} 42. Bxf7+ $18 Rxf7 43. Rxf7 Qxf2 44. Rg7+ Kf8 45. Nd2) 42... Bc7 $2 {[%emt 0:05:11][%mdl 8192]} (42... Qb8 $1 $11 43. Ra6 Bb6) 43. g5 {[%emt 0:01:29] aiming for Kb3.} Rb8 $2 {[%emt 0:01:02]} (43... Kg7 44. Re7 Kg6) 44. b5 {[%emt 0:02:18]} ({Not} 44. Bxf7+ Kf8 45. b5 Rd8 46. Rxd8+ Bxd8 $11) 44... Rf8 {[%emt 0:06:49]} 45. g6 {[%emt 0:00:24][%cal Rd7f7]} Kg7 {[%emt 0:00:42]} 46. Rxf7+ {[%emt 0:02:35]} Rxf7 {[%emt 0:00:07]} 47. gxf7 {[%emt 0:00:02]} ({And not} 47. Bxf7 Qc5 $11) 47... Bd8 {[%emt 0:11:59]} 48. Kd3 {[%emt 0:00:04] Black must now prevent Ke2.} Be7 {[%emt 0:00:19]} 49. Ke2 {[%emt 0:00:03] Ra8 would kill now.} Bf8 {[%emt 0:02:31]} 50. Ra8 {[%emt 0:00:25] White mates.} Be7 {[%emt 0:01:02]} 51. Rg8+ {[%emt 0:04:12]} Kh6 {[%emt 0:00:33]} 52. Re8 {[%emt 0:00:36]} Qa7 {[%emt 0:00:34] [#]} 53. b6 $1 {[%emt 0:00:09]} Qa2+ {[%emt 0:03:03]} 54. Kf1 {[%emt 0:00:03] An exciting game.   Weighted Error Value: White=0.64/Black=0.69} 1-0

[Event "European Women-ch 2023"]
[Site "Petrovac"]
[Date "2023.03.23"]
[Round "6.12"]
[White "Dwilewicz, Katarzyna"]
[Black "Ovod, Evgenija"]
[Result "0-1"]
[ECO "C47"]
[WhiteElo "2114"]
[BlackElo "2305"]
[Annotator "TA"]
[PlyCount "110"]
[EventDate "2023.03.15"]
[EventType "swiss"]
[EventCountry "MNE"]
[SourceTitle "playchess.com"]
[Source "ChessBase"]
[SourceQuality "1"]
[TimeControl "40/5400+30:1800+30"]

{[%evp 17,110,0,0,-10,17,8,8,2,8,0,0,0,35,16,19,16,12,0,13,0,12,14,35,0,0,0,0,0,0,-3,11,11,8,8,10,0,0,0,0,0,0,-53,-14,-12,-20,-30,0,0,0,0,0,0,0,0,0,0,0,0,0,0,0,-101,-72,-71,-65,-158,-95,-56,0,-211,0,-581,0,0,0,0,0,0,0,-59,-33,-1033,-1088,-704,-1022,-856,-702,-29984,-29985,-29993,-29994,-29994,-29995,-29995,-29996]} 1. e4 {[%emt 0:00:03]} e5 {[%emt 0:00:05]} 2. Nf3 {[%emt 0:00:11]} Nc6 {[%emt 0:00:07]} 3. Nc3 {[%emt 0:00:33]} Nf6 {[%emt 0:00:14]} 4. d4 {[%emt 0:00:20]} exd4 {[%emt 0:00:15]} 5. Nxd4 {[%emt 0:00:06]} Bb4 {[%emt 0:00:09]} 6. Nxc6 {[%emt 0:00:12]} bxc6 {[%emt 0:00:05]} 7. Bd3 {[%emt 0:00:06]} d5 {[%emt 0:00:07]} 8. exd5 {[%emt 0:00:07]} cxd5 {[%emt 0:00:07]} 9. O-O {[%emt 0:00:05]} O-O {[%emt 0:00:08]} 10. h3 $1 {[%emt 0:00:28]} h6 {[%emt 0:00:50]} 11. Qf3 {[%emt 0:00:28]} (11. a3 $5 {[%cal Ra3b4]} Bxc3 12. bxc3 $11) 11... Be6 {[%emt 0:02:18]} 12. Ne2 {[%emt 0:03:57] The position is equal.} c5 {[%emt 0:15:23]} 13. c3 {[%emt 0:06:23]} (13. a3 $5 Ba5 $8 14. b4 $11) 13... Ba5 {[%emt 0:00:06]} 14. Be3 {[%emt 0:03:02]} Nd7 {[%emt 0:10:31]} 15. Qg3 {[%emt 0:06:20] Repels Ne5} Bc7 {[%emt 0:01:45]} 16. Bf4 {[%emt 0:02:44]} Rc8 {[%emt 0:07:20]} 17. Rad1 {[%emt 0:04:00]} Nf6 {[%emt 0:10:36]} 18. Qf3 {[%emt 0:05:24]} (18. Rfe1 {keeps more tension.} Nh5 19. Qe3 Re8 20. Bxc7 Qxc7 21. Qf3) 18... Qe7 {[%emt 0:05:42]} 19. Rfe1 {[%emt 0:02:54]} Rfd8 {[%emt 0:00:55]} 20. Ng3 {[%emt 0:03:13]} Bxf4 {[%emt 0:01:44]} 21. Qxf4 {[%emt 0:00:16]} Qc7 {[%emt 0:00:05]} 22. Qf3 {[%emt 0:03:07]} Rb8 {[%emt 0:01:41]} 23. Rd2 {[%emt 0:02:49]} Qa5 {[%emt 0:01:37]} 24. Bf5 {[%emt 0:16:14]} Rb6 {[%emt 0:17:42]} 25. Rde2 {[%emt 0:03:50][%cal Rf5e6]} d4 {[%emt 0:03:15][%cal Bd5d4,Bd4d3,Bd3d2][%mdl 32]} 26. Bxe6 {[%emt 0:07:43]} fxe6 {[%emt 0:00:11]} 27. Rxe6 {[%emt 0:06:46]} Rxe6 {[%emt 0:00:05]} 28. Rxe6 {[%emt 0:00:01] Nf5 would be deadly.} d3 {[%emt 0:00:06] aiming for ...d2.} 29. Re1 {[%emt 0:09:51]} (29. Ne4 $11 Nxe4 30. Qxe4) 29... d2 {[%emt 0:01:00]} 30. Rd1 {[%emt 0:00:41]} Qxa2 {[%emt 0:00:08]} 31. Nf5 $1 {[%emt 0:00:10][%cal Of5h6]} Qxb2 {[%emt 0:04:01]} 32. Nxh6+ $1 {[%emt 0:01:17][%mdl 64] Deflection} Kf8 {[%emt 0:02:00][%cal Od8e8]} 33. Ng4 {[%emt 0:08:21]} Qb6 $36 {[%emt 0:00:26][%mdl 2048] Black is pushing.} 34. Nxf6 {[%emt 0:03:59]} gxf6 $11 {[%emt 0:00:04][%mdl 4096] Endgame KQR-KQR} (34... Qxf6 35. Qxf6+ gxf6 36. Kf1 $16) 35. Qe3 {[%emt 0:00:15] Wards off Qe6} Qd6 {[%emt 0:00:29]} 36. Qh6+ {[%emt 0:00:10]} Kf7 {[%emt 0:03:13]} 37. Qh7+ {[%emt 0:00:13]} Ke6 {[%emt 0:00:34]} 38. Qe4+ {[%emt 0:01:14]} Kd7 {[%emt 0:06:40] Active counter play!} 39. Qb7+ {[%emt 0:00:15]} (39. Kf1 $11) 39... Ke8 $1 $17 {[%emt 0:00:24] Strongly threatening ...Qe5.} 40. Qxa7 {[%emt 0:00:00] [#]} Qe5 $1 {[%emt 0:00:00]} 41. Qa1 {[%emt 0:12:36]} (41. Qg7 $2 Qe1+ $19) (41. Qa4+ $15 Kf7 42. Qc2) 41... Kf8 {[%emt 0:06:14]} ({Better is} 41... Kf7 {Threatens to win with ...Kg7.} 42. Kf1 Qd5) 42. g3 {[%emt 0:01:15]} Rd3 {[%emt 0:23:29]} (42... Ke7 $15) 43. h4 $2 {[%emt 0:13:41]} (43. Qa8+ $11 {and White stays safe.} Kg7 44. Qb7+ Kf8 45. Qc8+ Kf7 46. Qb7+ Kg6 47. Qa8) 43... Kg7 $2 {[%emt 0:02:40]} (43... Qe4 $19 {And now ...Qf3 would win.} 44. Qa7 Qe1+ 45. Kg2 Qxd1 46. Qxc5+ Ke8 47. Qc6+ Rd7 48. Qe6+ {[%mdl 64] Deflection} Kf8 49. Qxd7 Qe2 50. Qd6+ Ke8 51. Qc6+ (51. Qxf6 $2 {loses.} d1=Q $19) (51. Qb8+ Kd7 $11) 51... Ke7 52. Qb7+ Kf8 53. Qc8+ (53. Qb8+ Kg7 $11) 53... Kg7 54. Qb7+ (54. Qd7+ Kg6 $11) 54... Kh6) 44. Kf1 $2 {[%emt 0:02:57][%mdl 8192]} (44. Qa7+ $11 Kg6 45. Qa8) 44... c4 $2 {[%emt 0:02:42]} ({Less strong is} 44... Qxc3 45. Qxc3 Rxc3 46. Rxd2 $18) (44... Qh5 $19 {Hoping for ...Qf3.} 45. Qa7+ Kh6) 45. Qa7+ $1 $11 {[%emt 0:02:04]} Kg6 {[%emt 0:00:17] ...Qe4 is the strong threat.} 46. Qa8 {[%emt 0:01:05] Prevents Qe4.} Qe6 {[%emt 0:01:11]} 47. Kg2 {[%emt 0:01:17]} Rd5 {[%emt 0:00:40]} (47... Rxc3 $2 48. Rxd2 Rd3 49. Ra2 $18) 48. Qa1 {[%emt 0:01:11]} (48. Kh2 $11) 48... Qe4+ $1 $15 {[%emt 0:00:17][%mdl 1024] Black has compensation.} 49. Kg1 $2 {[%emt 0:00:28][%mdl 8192] Now White is beyond hope.} (49. Kh3 $15) 49... Rd3 $19 {[%emt 0:00:41]} 50. Qb1 {[%emt 0:00:24]} Qe2 {[%emt 0:03:14]} 51. Kg2 {[%emt 0:00:17] [#]} Qf3+ $1 {[%emt 0:00:27]} 52. Kg1 {[%emt 0:00:40]} Kh5 {[%emt 0:01:42] Black mates.} 53. Qb5+ {[%emt 0:00:43]} Kg4 {[%emt 0:00:18]} 54. Qxc4+ {[%emt 0:00:22]} Kh3 {[%emt 0:00:14][%cal Rf3d1]} 55. Qe6+ {[%emt 0:00:35]} f5 {[%emt 0:00:05] Weighted Error Value: White=0.44/Black=0.23 (precise)} 0-1

[Event "European Women-ch 2023"]
[Site "Petrovac"]
[Date "2023.03.23"]
[Round "6.12"]
[White "Shuqja, Klean"]
[Black "Tsirulnik, Maritsa"]
[Result "0-1"]
[ECO "B30"]
[WhiteElo "1884"]
[BlackElo "2121"]
[Annotator "TA"]
[PlyCount "76"]
[EventDate "2023.03.15"]
[EventType "swiss"]
[EventCountry "MNE"]
[SourceTitle "playchess.com"]
[Source "ChessBase"]
[SourceQuality "1"]
[TimeControl "40/5400+30:1800+30"]

{[%evp 9,76,3,12,-16,19,-23,-22,-22,-31,-71,-79,-106,-46,-55,-45,-103,-110,-114,-116,-123,100,87,119,95,122,0,10,10,10,10,8,3,3,9,16,0,44,47,99,94,134,149,140,138,166,145,144,30,211,102,249,0,217,0,132,-321,-79,-103,-86,-382,-241,-384,-358,-2040,-1603,-29984,-29985,-29987,-29988]} 1. e4 {[%emt 0:00:30]} c5 {[%emt 0:00:07]} 2. b3 {[%emt 0:01:30]} Nf6 {[%emt 0:00:15]} 3. e5 {[%emt 0:00:26]} Nd5 {[%emt 0:00:06]} 4. Nf3 {[%emt 0:00:29]} Nc6 {[%emt 0:09:30]} 5. Bb2 {[%emt 0:02:07]} g6 {[%emt 0:09:11]} 6. Bc4 {[%emt 0:14:08] B30: Sicilian: 2...Nc6 3 Bb5, lines without ...g6.} Nb6 {[%emt 0:02:49]} 7. e6 {[%emt 0:14:49][%csl Gc4][%cal Re6f7][%mdl 64] Discovered Attack} f6 {[%emt 0:00:11]} 8. exd7+ {[%emt 0:00:56] The position is equal.} Bxd7 {[%emt 0:04:39]} 9. Qe2 {[%emt 0:08:08]} e5 $1 {[%emt 0:02:52]} 10. O-O {[%emt 0:02:56][%cal Rf3e5] [#]} Qe7 $146 {[%emt 0:13:10]} ({Black should play} 10... Nxc4 $17 11. bxc4 Qb6) ({Predecessor:} 10... Nxc4 11. Qxc4 Qe7 12. a3 Be6 13. Qe2 Bg7 14. b4 cxb4 15. d4 Bd5 16. dxe5 fxe5 {0-1 Umudova,N (2247)-Dek,L (2266) NED-chT 1617 2016 (6.10)}) 11. Nc3 $15 {[%emt 0:02:58]} O-O-O {[%emt 0:02:30]} 12. a4 {[%emt 0:06:31]} (12. Bb5 $15) 12... Bg4 $1 $17 {[%emt 0:03:37]} 13. Qe3 {[%emt 0:07:27]} Nd4 {[%emt 0:06:11] ...Nxc4 is the strong threat.} 14. Bd3 {[%emt 0:12:06]} h5 $2 {[%emt 0:05:47] Black is more active.} (14... Bxf3 $1 $17 {and life is bright.} 15. gxf3 f5) 15. Nh4 $16 {[%emt 0:10:52]} (15. Bxg6 $2 Bxf3 16. gxf3 Qg7 $19) 15... Bh6 {[%emt 0:02:29]} 16. Nxg6 {[%emt 0:08:18]} Qg7 {[%emt 0:00:16]} 17. Qg3 {[%emt 0:02:06]} (17. f4 $1 $16) 17... Rhe8 $11 {[%emt 0:09:14] Threatens to win with ...c4.} 18. a5 {[%emt 0:00:49]} Nd5 {[%emt 0:01:11]} 19. Nxd5 {[%emt 0:00:39]} Rxd5 {[%emt 0:00:05]} 20. Bxd4 {[%emt 0:00:58]} Rxd4 {[%emt 0:00:18]} 21. f3 $36 {[%emt 0:01:35][%cal Bf2f3,Bf3f4][%mdl 2080] White is more active.} Bd7 {[%emt 0:03:36]} 22. f4 {[%emt 0:00:40]} e4 {[%emt 0:01:58]} 23. Bc4 {[%emt 0:00:30]} Rxd2 {[%emt 0:02:44]} ({Better is} 23... a6 $14) 24. Qe3 $16 {[%emt 0:00:31][%csl LRc5,LRd2]} Rxg2+ {[%emt 0:11:11][%mdl 64] Decoy} 25. Kxg2 {[%emt 0:00:09]} Qxg6+ {[%emt 0:00:04]} 26. Kh1 $1 {[%emt 0:00:50]} Bc6 {[%emt 0:02:13]} 27. Rad1 {[%emt 0:00:30]} (27. Qxc5 e3+ 28. Bd5 Qf5 $19) 27... Qf5 {[%emt 0:01:18] Dodges Bd5} 28. c3 {[%emt 0:00:27]} (28. Bd5 $1 $16) 28... Re7 $2 {[%emt 0:02:31]} (28... Rd8 $11 {and Black is okay.}) 29. b4 {[%emt 0:00:31]} (29. Bd5 $1 $18 {and the rest is easy.}) 29... a6 {[%emt 0:00:27]} (29... b6 $16) 30. bxc5 $2 {[%emt 0:00:31]} (30. Bd5 $1 $18) 30... Rg7 $2 {[%emt 0:00:52]} (30... Bf8 $11) 31. Rd2 $2 {[%emt 0:00:30]} (31. Rd6 $18 {Strongly threatening Be6+.} Kb8 32. Be6 (32. Rd8+ Kc7 $16)) 31... Rg4 {[%emt 0:00:44] [#]} (31... Rd7 $11 {remains equal.} 32. Rd6 Rxd6 33. cxd6 Kd7) 32. Rdf2 $2 {[%emt 0:00:30][%mdl 8192] [#]} (32. Rfd1 $2 Bxf4 33. Rf2 (33. Rd8+ $2 Kc7 $19) 33... Qe5 34. Rxf4 (34. Be6+ $2 Kc7 $19) 34... Rxf4 $19) (32. Rd6 $1 $16 {is forced if you want to stay better.} Bxf4 33. Be6+ {[%mdl 64] Deflection} Qxe6 34. Rxf4) 32... h4 $2 {[%emt 0:00:41]} (32... Bf8 $1 $19 {[%cal Rf8c5] has better winning chances.} 33. Rd1 Bxc5) 33. Be2 {[%emt 0:00:32]} Rg7 {[%emt 0:01:11]} (33... Rg8 {looks sharper.} 34. Rg2 Rxg2 35. Kxg2 Kc7) 34. Rg1 $2 {[%emt 0:00:29][%mdl 8192]} (34. Bc4 $17 {was called for.}) 34... Rxg1+ $19 {[%emt 0:02:21]} 35. Kxg1 {[%emt 0:00:00]} Bf8 {[%emt 0:00:42]} 36. Qd2 $2 {[%emt 0:01:01]} (36. Bf1 Kc7 37. Bh3 Bxc5 38. Bxf5 Bxe3 39. Kg2 Bxf2 40. Kxf2) 36... Bxc5 {[%emt 0:00:25] ( -> ...e3)} 37. Qc2 {[%emt 0:00:30]} Bxf2+ {[%emt 0:00:10]} 38. Kxf2 {[%emt 0:00:05]} e3+ {[%emt 0:00:02][%mdl 64] Discovered Attack.   Weighted Error Value: White=0.92/Black=0.57} 0-1